{"text_format":"1","workbook":"xlsx","n_sheets":14,"sheets":["Cover","Info","E01","E02","E03","E04","E05","E06","E07","E08","E09","E10","Results","About"],"not_rendered":{"charts":11,"images":36,"macros":1,"external_links":0,"defined_names":16,"comments":0,"pivot_tables":0},"unopened":[],"bounds":{"document_bytes":16777216,"sheet_cells":100000,"rows_first":2000,"rows_last":500,"rows_between":2000,"halvings":0,"cell_chars":16384,"cell_head_chars":4096},"cells_cut":0,"cells_raw":0,"read":"whole","date_system":"1900"}

{"sheet":"Cover","index":0,"n_rows":0,"n_cols":0,"rows_kept":0,"cut":false,"hidden":false,"merged":[]}

{"sheet":"Info","index":1,"n_rows":39,"n_cols":4,"rows_kept":39,"cut":false,"hidden":false,"merged":[[38,1,38,3],[39,1,39,3],[2,1,2,2],[3,1,3,2],[4,1,4,2],[5,1,5,2],[6,1,6,2],[37,1,37,3],[31,1,31,2],[32,1,32,2],[33,1,33,2],[34,1,34,2],[35,1,35,2]]}
[]
[]
[null," معلومات التقييم",null,"الإجابة"]
[null,"اسم المدينة "]
[null,"نوع المدينة  (بلدية ,مدينة كبرى, قرية)"]
[null,"البلد "]
[null,"تاريخ التقييم "]
[]
[null,"الملف الشخصي للمدينة (مطلوب)","الإجابة","تاريخ المصدر  "]
[null,"المسمى الوظيفي لأعلى منصب في المدينة  (على سبيل المثال عمدة, رئيس بلدية ¸إلخ)"]
[null,"عدد سكان المدينة "]
[null,"مساحة  المدينة  (كيلومتر مربع):"]
[null,"الكثافة السكانية (لكل كيلومتر مربع):"]
[null,"٪ الأسر المعيشية التي ترأسها امرأة"]
[null,"٪ السكان الشباب (15-24):"]
[null,"٪ السكان من كبار السن (65+):"]
[null,"معدل محو الأمية (٪)"]
[null,"معدل الفقر(٪)"]
[null,"معدل دخل الأسرة (دولار):"]
[null,"السكان غير المواطنين (٪):"]
[null,"مخاطر الكوارث -  الأكثر احتمالا (اجابة واحدة):"]
[null,"مخاطر الكوارث  -  الأكثر حدة (اجابة واحدة):"]
[]
[null,"ملف المدينة (اختياري)","الإجابة","تاريخ المصدر "]
[null,"إجمالي عدد الأسر"]
[null,"عدد الأشخاص لكل وحدة"]
[null,"تكلفة المعيشة (بالدولار الأمريكي)"]
[null,"نصيب الفرد من الناتج المحلي الإجمالي للدولة (بالدولار الأمريكي)"]
[null,"معامل جيني (لقياس عدالة توزيع الدخل القومي)"]
[null,"نصيب الفرد من الناتج المحلي للمدينة  (بالدولار الأمريكي)"]
[]
[null,"فريق الحكومة المحلية للحد من مخاطر الكوارث والقدرة على الصمود",null,"الإجابة"]
[null,"اسم الشخص المكلف برئاسة / تنسيق الانتهاء من تقييم بطاقة التقييم:"]
[null,"الجهة:"]
[null,"بيانات الاتصال:"]
[null,"الرغبة في تبادل النتائج والمعلومات أو استخدامها كمثال أو دراسة حالة من قبل مكتب الامم المتحدة للحد من مخاطر الكوارث والشركاء:"]
[]
[null,"معلومات عن الشركاء واصحاب المصلحة  "]
[null,"يرجى ذكر جميع أصحاب المصلحة الذين أيدوا هذا التقييم"]

{"sheet":"E01","index":2,"n_rows":33,"n_cols":6,"rows_kept":33,"cut":false,"hidden":false,"merged":[[17,2,20,3],[25,2,25,3],[26,2,26,3],[27,2,27,3],[28,2,31,3],[16,2,16,3],[4,2,4,3],[3,2,3,3],[5,2,5,3],[6,2,9,3],[14,2,14,3],[15,2,15,3]]}
[]
[]
[null,"P1.1 - وضع الخطة"]
[null,"السؤال/ مجال التقييم","تعليقات"]
[]
[null,"نطاق القياس الإرشادي","وسائل التحقق (الشرح والأدلة)"]
[null,null,null,null,null,{"$f":"IF(E7=1,TRUE,FALSE)","v":false}]
[null,null,null,null,null,{"$f":"IF(E7=2,TRUE,FALSE)","v":false}]
[null,null,null,null,null,{"$f":"IF(E7=3,TRUE,FALSE)","v":false}]
[null,null,null,null,null,{"$f":"IF(E7=4,TRUE,FALSE)","v":false}]
[null,"إجراءات لتحقيق الحد الأقصى من القدرة على الصمود","الجهة المسئولة  ","الجدول الزمني"]
[]
[]
[null,"P1.2 - التنظيم والتنسيق والمشاركة"]
[null,"السؤال/ مجال التقييم","تعليقات"]
[]
[null,"نطاق القياس الإرشادي","وسائل التحقق (الشرح والأدلة)"]
[null,null,null,null,null,{"$f":"IF(E18=1,TRUE,FALSE)","v":false}]
[null,null,null,null,null,{"$f":"IF(E18=2,TRUE,FALSE)","v":false}]
[null,null,null,null,null,{"$f":"IF(E18=3,TRUE,FALSE)","v":false}]
[null,null,null,null,null,{"$f":"IF(E18=4,TRUE,FALSE)","v":false}]
[null,"إجراءات لتحقيق الحد الأقصى من القدرة على الصمود ","الجهة المسئولة  ","الجدول الزمني"]
[]
[]
[null,"P1.3 - الإدماج"]
[null,"السؤال/ مجال التقييم","تعليقات"]
[]
[null,"نطاق القياس الإرشادي","وسائل التحقق (الشرح والأدلة)"]
[null,null,null,null,null,{"$f":"IF(E29=1,TRUE,FALSE)","v":false}]
[null,null,null,null,null,{"$f":"IF(E29=2,TRUE,FALSE)","v":false}]
[null,null,null,null,null,{"$f":"IF(E29=3,TRUE,FALSE)","v":false}]
[null,null,null,null,null,{"$f":"IF(E29=4,TRUE,FALSE)","v":false}]
[null,"إجراءات لتحقيق الحد الأقصى من القدرة على الصمود ","الجهة المسئولة  ","الجدول الزمني"]

{"sheet":"E02","index":3,"n_rows":55,"n_cols":6,"rows_kept":55,"cut":false,"hidden":false,"merged":[[3,2,3,3],[4,2,4,3],[5,2,5,3],[6,2,9,3],[47,2,47,3],[48,2,48,3],[49,2,49,3],[50,2,53,3],[14,2,14,3],[15,2,15,3],[36,2,36,3],[37,2,37,3],[38,2,38,3],[39,2,42,3],[16,2,16,3],[17,2,20,3],[25,2,25,3],[26,2,26,3],[27,2,27,3],[28,2,31,3]]}
[]
[]
[null,"P2.1 - تقييم الأخطار"]
[null,"السؤال/ مجال التقييم","تعليقات"]
[]
[null,"نطاق القياس الإرشادي","وسائل التحقق (الشرح والأدلة)"]
[null,null,null,null,null,{"$f":"IF(E7=1,TRUE,FALSE)","v":false}]
[null,null,null,null,null,{"$f":"IF(E7=2,TRUE,FALSE)","v":false}]
[null,null,null,null,null,{"$f":"IF(E7=3,TRUE,FALSE)","v":false}]
[null,null,null,null,null,{"$f":"IF(E7=4,TRUE,FALSE)","v":false}]
[null,"إجراءات لتحقيق الحد الأقصى من القدرة على الصمود","الجهة المسئولة ","الجدول الزمني"]
[]
[]
[null,"P2.2 - الفهم المشترك لمخاطر البنية التحتية"]
[null,"السؤال/ مجال التقييم","تعليقات"]
[]
[null,"نطاق القياس الإرشادي","وسائل التحقق (الشرح والأدلة)"]
[null,null,null,null,null,{"$f":"IF(E18=1,TRUE,FALSE)","v":false}]
[null,null,null,null,null,{"$f":"IF(E18=2,TRUE,FALSE)","v":false}]
[null,null,null,null,null,{"$f":"IF(E18=3,TRUE,FALSE)","v":false}]
[null,null,null,null,null,{"$f":"IF(E18=4,TRUE,FALSE)","v":false}]
[null,"إجراءات لتحقيق الحد الأقصى من القدرة على الصمود","الجهة المسئولة ","الجدول الزمني"]
[]
[]
[null,"P2.3 -المعرفة بالتعرض وقابلية التضرر "]
[null,"السؤال/ مجال التقييم","تعليقات"]
[]
[null,"نطاق القياس الإرشادي","وسائل التحقق (الشرح والأدلة)"]
[null,null,null,null,null,{"$f":"IF(E29=1,TRUE,FALSE)","v":false}]
[null,null,null,null,null,{"$f":"IF(E29=2,TRUE,FALSE)","v":false}]
[null,null,null,null,null,{"$f":"IF(E29=3,TRUE,FALSE)","v":false}]
[null,null,null,null,null,{"$f":"IF(E29=4,TRUE,FALSE)","v":false}]
[null,"إجراءات لتحقيق الحد الأقصى من القدرة على الصمود","الجهة المسئولة ","الجدول الزمني"]
[]
[]
[null,"P2.4 - التأثيرات المتعاقبة"]
[null,"السؤال/ مجال التقييم","تعليقات"]
[]
[null,"نطاق القياس الإرشادي","وسائل التحقق (الشرح والأدلة)"]
[null,null,null,null,null,{"$f":"IF(E40=1,TRUE,FALSE)","v":false}]
[null,null,null,null,null,{"$f":"IF(E40=2,TRUE,FALSE)","v":false}]
[null,null,null,null,null,{"$f":"IF(E40=3,TRUE,FALSE)","v":false}]
[null,null,null,null,null,{"$f":"IF(E40=4,TRUE,FALSE)","v":false}]
[null,"إجراءات لتحقيق الحد الأقصى من القدرة على الصمود","الجهة المسئولة ","الجدول الزمني"]
[]
[]
[null,"P2.5 - عملية تقديم وتحديث معلومات المخاطر"]
[null,"السؤال/ مجال التقييم","تعليقات"]
[]
[null,"نطاق القياس الإرشادي","وسائل التحقق (الشرح والأدلة)"]
[null,null,null,null,null,{"$f":"IF(E51=1,TRUE,FALSE)","v":false}]
[null,null,null,null,null,{"$f":"IF(E51=2,TRUE,FALSE)","v":false}]
[null,null,null,null,null,{"$f":"IF(E51=3,TRUE,FALSE)","v":false}]
[null,null,null,null,null,{"$f":"IF(E51=4,TRUE,FALSE)","v":false}]
[null,"إجراءات لتحقيق الحد الأقصى من القدرة على الصمود","الجهة المسئولة ","الجدول الزمني"]

{"sheet":"E03","index":4,"n_rows":44,"n_cols":6,"rows_kept":44,"cut":false,"hidden":false,"merged":[[15,2,15,3],[3,2,3,3],[4,2,4,3],[5,2,5,3],[6,2,9,3],[14,2,14,3],[36,2,36,3],[37,2,37,3],[38,2,38,3],[39,2,42,3],[16,2,16,3],[17,2,20,3],[25,2,25,3],[26,2,26,3],[27,2,27,3],[28,2,31,3]]}
[]
[]
[null,"P3.1 - معرفة المنهجيات لاجتذاب الاستثمارات الجديدة إلى المدينة"]
[null,"السؤال/ مجال التقييم","تعليقات"]
[]
[null,"نطاق القياس الإرشادي","وسائل التحقق (الشرح والأدلة)"]
[null,null,null,null,null,{"$f":"IF(E7=1,TRUE,FALSE)","v":false}]
[null,null,null,null,null,{"$f":"IF(E7=2,TRUE,FALSE)","v":false}]
[null,null,null,null,null,{"$f":"IF(E7=3,TRUE,FALSE)","v":false}]
[null,null,null,null,null,{"$f":"IF(E7=4,TRUE,FALSE)","v":false}]
[null,"إجراءات لتحقيق الحد الأقصى من القدرة على الصمود ","الجهة المسئولة  ","الجدول الزمني"]
[]
[]
[null,"P3.2 - الخطة المالية والميزانية للقدرة على الصمودبما فيها التمويل "]
[null,"السؤال/ مجال التقييم","تعليقات"]
[]
[null,"نطاق القياس الإرشادي","وسائل التحقق (الشرح والأدلة)"]
[null,null,null,null,null,{"$f":"IF(E18=1,TRUE,FALSE)","v":false}]
[null,null,null,null,null,{"$f":"IF(E18=2,TRUE,FALSE)","v":false}]
[null,null,null,null,null,{"$f":"IF(E18=3,TRUE,FALSE)","v":false}]
[null,null,null,null,null,{"$f":"IF(E18=4,TRUE,FALSE)","v":false}]
[null,"إجراءات لتحقيق الحد الأقصى من القدرة على الصمود ","الجهة المسئولة  ","الجدول الزمني"]
[]
[]
[null,"P3.3 - التأمين"]
[null,"السؤال/ مجال التقييم","تعليقات"]
[]
[null,"نطاق القياس الإرشادي","وسائل التحقق (الشرح والأدلة)"]
[null,null,null,null,null,{"$f":"IF(E29=1,TRUE,FALSE)","v":false}]
[null,null,null,null,null,{"$f":"IF(E29=2,TRUE,FALSE)","v":false}]
[null,null,null,null,null,{"$f":"IF(E29=3,TRUE,FALSE)","v":false}]
[null,null,null,null,null,{"$f":"IF(E29=4,TRUE,FALSE)","v":false}]
[null,"إجراءات لتحقيق الحد الأقصى من القدرة على الصمود ","الجهة المسئولة  ","الجدول الزمني"]
[]
[]
[null,"P3.4 - الحوافز"]
[null,"السؤال/ مجال التقييم","تعليقات"]
[]
[null,"نطاق القياس الإرشادي","وسائل التحقق (الشرح والأدلة)"]
[null,null,null,null,null,{"$f":"IF(E40=1,TRUE,FALSE)","v":false}]
[null,null,null,null,null,{"$f":"IF(E40=2,TRUE,FALSE)","v":false}]
[null,null,null,null,null,{"$f":"IF(E40=3,TRUE,FALSE)","v":false}]
[null,null,null,null,null,{"$f":"IF(E40=4,TRUE,FALSE)","v":false}]
[null,"إجراءات لتحقيق الحد الأقصى من القدرة على الصمود ","الجهة المسئولة  ","الجدول الزمني"]

{"sheet":"E04","index":5,"n_rows":44,"n_cols":6,"rows_kept":44,"cut":false,"hidden":false,"merged":[[15,2,15,3],[3,2,3,3],[4,2,4,3],[5,2,5,3],[6,2,9,3],[14,2,14,3],[36,2,36,3],[37,2,37,3],[38,2,38,3],[39,2,42,3],[16,2,16,3],[17,2,20,3],[25,2,25,3],[26,2,26,3],[27,2,27,3],[28,2,31,3]]}
[]
[]
[null,"P4.1 - تقسيم المناطق حسب استخدام الأراضي"]
[null,"السؤال/ مجال التقييم","تعليقات"]
[]
[null,"نطاق القياس الإرشادي","إجراءات لتحقيق الحد الأقصى من القدرة على الصمود"]
[null,null,null,null,null,{"$f":"IF(E7=1,TRUE,FALSE)","v":false}]
[null,null,null,null,null,{"$f":"IF(E7=2,TRUE,FALSE)","v":false}]
[null,null,null,null,null,{"$f":"IF(E7=3,TRUE,FALSE)","v":false}]
[null,null,null,null,null,{"$f":"IF(E7=4,TRUE,FALSE)","v":false}]
[null,"إجراءات لتحقيق الحد الأقصى من القدرة على الصمود","الجهة المسئولة  ","الجدول الزمني"]
[]
[]
[null,"P4.2 - التنمية الحضرية الجديدة"]
[null,"السؤال/ مجال التقييم","تعليقات"]
[]
[null,"نطاق القياس الإرشادي","إجراءات لتحقيق الحد الأقصى من القدرة على الصمود"]
[null,null,null,null,null,{"$f":"IF(E18=1,TRUE,FALSE)","v":false}]
[null,null,null,null,null,{"$f":"IF(E18=2,TRUE,FALSE)","v":false}]
[null,null,null,null,null,{"$f":"IF(E18=3,TRUE,FALSE)","v":false}]
[null,null,null,null,null,{"$f":"IF(E18=4,TRUE,FALSE)","v":false}]
[null,"إجراءات لتحقيق الحد الأقصى من القدرة على الصمود","الجهة المسئولة  ","الجدول الزمني"]
[]
[]
[null,"P4.3 - كودات ومعايير البناء"]
[null,"السؤال/ مجال التقييم","تعليقات"]
[]
[null,"نطاق القياس الإرشادي","إجراءات لتحقيق الحد الأقصى من القدرة على الصمود"]
[null,null,null,null,null,{"$f":"IF(E29=1,TRUE,FALSE)","v":false}]
[null,null,null,null,null,{"$f":"IF(E29=2,TRUE,FALSE)","v":false}]
[null,null,null,null,null,{"$f":"IF(E29=3,TRUE,FALSE)","v":false}]
[null,null,null,null,null,{"$f":"IF(E29=4,TRUE,FALSE)","v":false}]
[null,"إجراءات لتحقيق الحد الأقصى من القدرة على الصمود","الجهة المسئولة  ","الجدول الزمني"]
[]
[]
[null,"P4.4 - تطبيق تقسيم المناطق وكودات ومعايير البناء"]
[null,"السؤال/ مجال التقييم","تعليقات"]
[]
[null,"نطاق القياس الإرشادي","إجراءات لتحقيق الحد الأقصى من القدرة على الصمود"]
[null,null,null,null,null,{"$f":"IF(E40=1,TRUE,FALSE)","v":false}]
[null,null,null,null,null,{"$f":"IF(E40=2,TRUE,FALSE)","v":false}]
[null,null,null,null,null,{"$f":"IF(E40=3,TRUE,FALSE)","v":false}]
[null,null,null,null,null,{"$f":"IF(E40=4,TRUE,FALSE)","v":false}]
[null,"إجراءات لتحقيق الحد الأقصى من القدرة على الصمود","الجهة المسئولة  ","الجدول الزمني"]

{"sheet":"E05","index":6,"n_rows":33,"n_cols":6,"rows_kept":33,"cut":false,"hidden":false,"merged":[[28,2,31,3],[3,2,3,3],[4,2,4,3],[5,2,5,3],[6,2,9,3],[14,2,14,3],[15,2,15,3],[16,2,16,3],[17,2,20,3],[25,2,25,3],[26,2,26,3],[27,2,27,3]]}
[]
[]
[null,"P5.1 - التوعية بخدمات ووظائف المنظومات البيئية وفهمها"]
[null,"السؤال/ مجال التقييم","تعليقات"]
[]
[null,"نطاق القياس الإرشادي","إجراءات لتحقيق الحد الأقصى من القدرة على الصمود"]
[null,null,null,null,null,{"$f":"IF(E7=1,TRUE,FALSE)","v":false}]
[null,null,null,null,null,{"$f":"IF(E7=2,TRUE,FALSE)","v":false}]
[null,null,null,null,null,{"$f":"IF(E7=3,TRUE,FALSE)","v":false}]
[null,null,null,null,null,{"$f":"IF(E7=4,TRUE,FALSE)","v":false}]
[null,"إجراءات لتحقيق الحد الأقصى من القدرة على الصمود ","الجهة المسئولة  ","الجدول الزمني"]
[]
[]
[null,"P5.2 - إدماج البنية التحتية الخضراء والزرقاء في سياسة المدينة ومشروعاتها "]
[null,"السؤال/ مجال التقييم","تعليقات"]
[]
[null,"نطاق القياس الإرشادي","إجراءات لتحقيق الحد الأقصى من القدرة على الصمود"]
[null,null,null,null,null,{"$f":"IF(E18=1,TRUE,FALSE)","v":false}]
[null,null,null,null,null,{"$f":"IF(E18=2,TRUE,FALSE)","v":false}]
[null,null,null,null,null,{"$f":"IF(E18=3,TRUE,FALSE)","v":false}]
[null,null,null,null,null,{"$f":"IF(E18=4,TRUE,FALSE)","v":false}]
[null,"إجراءات لتحقيق الحد الأقصى من القدرة على الصمود ","الجهة المسئولة  ","الجدول الزمني"]
[]
[]
[null,"P5.3 - القضايا البيئية العابرة للحدود"]
[null,"السؤال/ مجال التقييم","تعليقات"]
[]
[null,"نطاق القياس الإرشادي","إجراءات لتحقيق الحد الأقصى من القدرة على الصمود"]
[null,null,null,null,null,{"$f":"IF(E29=1,TRUE,FALSE)","v":false}]
[null,null,null,null,null,{"$f":"IF(E29=2,TRUE,FALSE)","v":false}]
[null,null,null,null,null,{"$f":"IF(E29=3,TRUE,FALSE)","v":false}]
[null,null,null,null,null,{"$f":"IF(E29=4,TRUE,FALSE)","v":false}]
[null,"إجراءات لتحقيق الحد الأقصى من القدرة على الصمود ","الجهة المسئولة  ","الجدول الزمني"]

{"sheet":"E06","index":7,"n_rows":66,"n_cols":6,"rows_kept":66,"cut":false,"hidden":false,"merged":[[28,2,31,3],[3,2,3,3],[4,2,4,3],[5,2,5,3],[6,2,9,3],[14,2,14,3],[15,2,15,3],[16,2,16,3],[17,2,20,3],[25,2,25,3],[26,2,26,3],[27,2,27,3],[61,2,64,3],[36,2,36,3],[37,2,37,3],[38,2,38,3],[39,2,42,3],[47,2,47,3],[48,2,48,3],[49,2,49,3],[50,2,53,3],[58,2,58,3],[59,2,59,3],[60,2,60,3]]}
[]
[]
[null,"P6.1 - المهارات والخبرة  "]
[null,"السؤال/ مجال التقييم","تعليقات"]
[]
[null,"نطاق القياس الإرشادي","وسائل التحقق (الشرح والأدلة)"]
[null,null,null,null,null,{"$f":"IF(E7=1,TRUE,FALSE)","v":false}]
[null,null,null,null,null,{"$f":"IF(E7=2,TRUE,FALSE)","v":false}]
[null,null,null,null,null,{"$f":"IF(E7=3,TRUE,FALSE)","v":false}]
[null,null,null,null,null,{"$f":"IF(E7=4,TRUE,FALSE)","v":false}]
[null,"إجراءات لتحقيق الحد الأقصى من القدرة على الصمود ","الجهة المسئولة","الجدول الزمني"]
[]
[]
[null,"P6.2 - التعليم والتوعية العامين"]
[null,"السؤال/ مجال التقييم","تعليقات"]
[]
[null,"نطاق القياس الإرشادي","وسائل التحقق (الشرح والأدلة)"]
[null,null,null,null,null,{"$f":"IF(E18=1,TRUE,FALSE)","v":false}]
[null,null,null,null,null,{"$f":"IF(E18=2,TRUE,FALSE)","v":false}]
[null,null,null,null,null,{"$f":"IF(E18=3,TRUE,FALSE)","v":false}]
[null,null,null,null,null,{"$f":"IF(E18=4,TRUE,FALSE)","v":false}]
[null,"إجراءات لتحقيق الحد الأقصى من القدرة على الصمود ","الجهة المسئولة","الجدول الزمني"]
[]
[]
[null,"P6.3 - تشارك البيانات"]
[null,"السؤال/ مجال التقييم","تعليقات"]
[]
[null,"نطاق القياس الإرشادي","وسائل التحقق (الشرح والأدلة)"]
[null,null,null,null,null,{"$f":"IF(E29=1,TRUE,FALSE)","v":false}]
[null,null,null,null,null,{"$f":"IF(E29=2,TRUE,FALSE)","v":false}]
[null,null,null,null,null,{"$f":"IF(E29=3,TRUE,FALSE)","v":false}]
[null,null,null,null,null,{"$f":"IF(E29=4,TRUE,FALSE)","v":false}]
[null,"إجراءات لتحقيق الحد الأقصى من القدرة على الصمود ","الجهة المسئولة","الجدول الزمني"]
[]
[]
[null,"P6.4 - تقديم التدريب"]
[null,"السؤال/ مجال التقييم","تعليقات"]
[]
[null,"نطاق القياس الإرشادي","وسائل التحقق (الشرح والأدلة)"]
[null,null,null,null,null,{"$f":"IF(E40=1,TRUE,FALSE)","v":false}]
[null,null,null,null,null,{"$f":"IF(E40=2,TRUE,FALSE)","v":false}]
[null,null,null,null,null,{"$f":"IF(E40=3,TRUE,FALSE)","v":false}]
[null,null,null,null,null,{"$f":"IF(E40=4,TRUE,FALSE)","v":false}]
[null,"إجراءات لتحقيق الحد الأقصى من القدرة على الصمود ","الجهة المسئولة","الجدول الزمني"]
[]
[]
[null,"P6.5 - اللغات"]
[null,"السؤال/ مجال التقييم","تعليقات"]
[]
[null,"نطاق القياس الإرشادي","وسائل التحقق (الشرح والأدلة)"]
[null,null,null,null,null,{"$f":"IF(E51=1,TRUE,FALSE)","v":false}]
[null,null,null,null,null,{"$f":"IF(E51=2,TRUE,FALSE)","v":false}]
[null,null,null,null,null,{"$f":"IF(E51=3,TRUE,FALSE)","v":false}]
[null,null,null,null,null,{"$f":"IF(E51=4,TRUE,FALSE)","v":false}]
[null,"إجراءات لتحقيق الحد الأقصى من القدرة على الصمود ","الجهة المسئولة","الجدول الزمني"]
[]
[]
[null,"P6.6 - التعلم من الآخرين "]
[null,"السؤال/ مجال التقييم","تعليقات"]
[]
[null,"نطاق القياس الإرشادي","وسائل التحقق (الشرح والأدلة)"]
[null,null,null,null,null,{"$f":"IF(E62=1,TRUE,FALSE)","v":false}]
[null,null,null,null,null,{"$f":"IF(E62=2,TRUE,FALSE)","v":false}]
[null,null,null,null,null,{"$f":"IF(E62=3,TRUE,FALSE)","v":false}]
[null,null,null,null,null,{"$f":"IF(E62=4,TRUE,FALSE)","v":false}]
[null,"إجراءات لتحقيق الحد الأقصى من القدرة على الصمود ","الجهة المسئولة","الجدول الزمني"]

{"sheet":"E07","index":8,"n_rows":44,"n_cols":6,"rows_kept":44,"cut":false,"hidden":false,"merged":[[15,2,15,3],[3,2,3,3],[4,2,4,3],[5,2,5,3],[6,2,9,3],[14,2,14,3],[36,2,36,3],[37,2,37,3],[38,2,38,3],[39,2,42,3],[16,2,16,3],[17,2,20,3],[25,2,25,3],[26,2,26,3],[27,2,27,3],[28,2,31,3]]}
[]
[]
[null,"P7.1 - المجموعات أو المنظمات \"الشعبية\" والشبكات والتدريب"]
[null,"السؤال/ مجال التقييم","تعليقات"]
[]
[null,"نطاق القياس الإرشادي","وسائل التحقق (الشرح والأدلة)"]
[null,null,null,null,null,{"$f":"IF(E7=1,TRUE,FALSE)","v":false}]
[null,null,null,null,null,{"$f":"IF(E7=2,TRUE,FALSE)","v":false}]
[null,null,null,null,null,{"$f":"IF(E7=3,TRUE,FALSE)","v":false}]
[null,null,null,null,null,{"$f":"IF(E7=4,TRUE,FALSE)","v":false}]
[null,"إجراءات لتحقيق الحد الأقصى من القدرة على الصمود ","الجهة المسئولة ","الجدول الزمني"]
[]
[]
[null,"P7.2 - شبكات التواصل الاجتماعي\"ضمان عدم ترك أحد خلفنا\""]
[null,"السؤال/ مجال التقييم","تعليقات"]
[]
[null,"نطاق القياس الإرشادي","وسائل التحقق (الشرح والأدلة)"]
[null,null,null,null,null,{"$f":"IF(E18=1,TRUE,FALSE)","v":false}]
[null,null,null,null,null,{"$f":"IF(E18=2,TRUE,FALSE)","v":false}]
[null,null,null,null,null,{"$f":"IF(E18=3,TRUE,FALSE)","v":false}]
[null,null,null,null,null,{"$f":"IF(E18=4,TRUE,FALSE)","v":false}]
[null,"إجراءات لتحقيق الحد الأقصى من القدرة على الصمود ","الجهة المسئولة ","الجدول الزمني"]
[]
[]
[null,"P7.3 - القطاع الخاص/ أصحاب العمل"]
[null,"السؤال/ مجال التقييم","تعليقات"]
[]
[null,"نطاق القياس الإرشادي","وسائل التحقق (الشرح والأدلة)"]
[null,null,null,null,null,{"$f":"IF(E29=1,TRUE,FALSE)","v":false}]
[null,null,null,null,null,{"$f":"IF(E29=2,TRUE,FALSE)","v":false}]
[null,null,null,null,null,{"$f":"IF(E29=3,TRUE,FALSE)","v":false}]
[null,null,null,null,null,{"$f":"IF(E29=4,TRUE,FALSE)","v":false}]
[null,"إجراءات لتحقيق الحد الأقصى من القدرة على الصمود ","الجهة المسئولة ","الجدول الزمني"]
[]
[]
[]
[null,"السؤال/ مجال التقييم","تعليقات"]
[]
[null,"نطاق القياس الإرشادي","وسائل التحقق (الشرح والأدلة)"]
[null,null,null,null,null,{"$f":"IF(E40=1,TRUE,FALSE)","v":false}]
[null,null,null,null,null,{"$f":"IF(E40=2,TRUE,FALSE)","v":false}]
[null,null,null,null,null,{"$f":"IF(E40=3,TRUE,FALSE)","v":false}]
[null,null,null,null,null,{"$f":"IF(E40=4,TRUE,FALSE)","v":false}]
[null,"إجراءات لتحقيق الحد الأقصى من القدرة على الصمود ","الجهة المسئولة ","الجدول الزمني"]

{"sheet":"E08","index":9,"n_rows":99,"n_cols":6,"rows_kept":99,"cut":false,"hidden":false,"merged":[[69,2,69,3],[70,2,70,3],[71,2,71,3],[72,2,75,3],[28,2,31,3],[3,2,3,3],[4,2,4,3],[5,2,5,3],[6,2,9,3],[14,2,14,3],[15,2,15,3],[16,2,16,3],[17,2,20,3],[25,2,25,3],[26,2,26,3],[27,2,27,3],[61,2,64,3],[36,2,36,3],[37,2,37,3],[38,2,38,3],[39,2,42,3],[47,2,47,3],[48,2,48,3],[49,2,49,3],[50,2,53,3],[58,2,58,3],[59,2,59,3],[60,2,60,3],[94,2,97,3],[80,2,80,3],[81,2,81,3],[82,2,82,3],[83,2,86,3],[91,2,91,3],[92,2,92,3],[93,2,93,3]]}
[]
[]
[null,"P8.1 - نظرة عامة على البنية التحتية الحساسة"]
[null,"السؤال/ مجال التقييم","تعليقات"]
[]
[null,"نطاق القياس الإرشادي","وسائل التحقق (الشرح والأدلة)"]
[null,null,null,null,null,{"$f":"IF(E7=1,TRUE,FALSE)","v":false}]
[null,null,null,null,null,{"$f":"IF(E7=2,TRUE,FALSE)","v":false}]
[null,null,null,null,null,{"$f":"IF(E7=3,TRUE,FALSE)","v":false}]
[null,null,null,null,null,{"$f":"IF(E7=4,TRUE,FALSE)","v":false}]
[null,"إجراءات لتحقيق الحد الأقصى من القدرة على الصمود","الجهة المسئولة ","الجدول الزمني"]
[]
[]
[null,"P8.2 - البنية التحتية الوقائية"]
[null,"السؤال/ مجال التقييم","تعليقات"]
[]
[null,"نطاق القياس الإرشادي","وسائل التحقق (الشرح والأدلة)"]
[null,null,null,null,null,{"$f":"IF(E18=1,TRUE,FALSE)","v":false}]
[null,null,null,null,null,{"$f":"IF(E18=2,TRUE,FALSE)","v":false}]
[null,null,null,null,null,{"$f":"IF(E18=3,TRUE,FALSE)","v":false}]
[null,null,null,null,null,{"$f":"IF(E18=4,TRUE,FALSE)","v":false}]
[null,"إجراءات لتحقيق الحد الأقصى من القدرة على الصمود","الجهة المسئولة ","الجدول الزمني"]
[]
[]
[null,"P8.3 - المياه- مياه الشرب والصرف الصحي"]
[null,"السؤال/ مجال التقييم","تعليقات"]
[]
[null,"نطاق القياس الإرشادي","وسائل التحقق (الشرح والأدلة)"]
[null,null,null,null,null,{"$f":"IF(E29=1,TRUE,FALSE)","v":false}]
[null,null,null,null,null,{"$f":"IF(E29=2,TRUE,FALSE)","v":false}]
[null,null,null,null,null,{"$f":"IF(E29=3,TRUE,FALSE)","v":false}]
[null,null,null,null,null,{"$f":"IF(E29=4,TRUE,FALSE)","v":false}]
[null,"إجراءات لتحقيق الحد الأقصى من القدرة على الصمود","الجهة المسئولة ","الجدول الزمني"]
[]
[]
[null,"P8.4 - الطاقة"]
[null,"السؤال/ مجال التقييم","تعليقات"]
[]
[null,"نطاق القياس الإرشادي","وسائل التحقق (الشرح والأدلة)"]
[null,null,null,null,null,{"$f":"IF(E40=1,TRUE,FALSE)","v":false}]
[null,null,null,null,null,{"$f":"IF(E40=2,TRUE,FALSE)","v":false}]
[null,null,null,null,null,{"$f":"IF(E40=3,TRUE,FALSE)","v":false}]
[null,null,null,null,null,{"$f":"IF(E40=4,TRUE,FALSE)","v":false}]
[null,"إجراءات لتحقيق الحد الأقصى من القدرة على الصمود","الجهة المسئولة ","الجدول الزمني"]
[]
[]
[null,"P8.5 - النقل"]
[null,"السؤال/ مجال التقييم","تعليقات"]
[]
[null,"نطاق القياس الإرشادي","وسائل التحقق (الشرح والأدلة)"]
[null,null,null,null,null,{"$f":"IF(E51=1,TRUE,FALSE)","v":false}]
[null,null,null,null,null,{"$f":"IF(E51=2,TRUE,FALSE)","v":false}]
[null,null,null,null,null,{"$f":"IF(E51=3,TRUE,FALSE)","v":false}]
[null,null,null,null,null,{"$f":"IF(E51=4,TRUE,FALSE)","v":false}]
[null,"إجراءات لتحقيق الحد الأقصى من القدرة على الصمود","الجهة المسئولة ","الجدول الزمني"]
[]
[]
[null,"P8.6 - الاتصالات"]
[null,"السؤال/ مجال التقييم","تعليقات"]
[]
[null,"نطاق القياس الإرشادي","وسائل التحقق (الشرح والأدلة)"]
[null,null,null,null,null,{"$f":"IF(E62=1,TRUE,FALSE)","v":false}]
[null,null,null,null,null,{"$f":"IF(E62=2,TRUE,FALSE)","v":false}]
[null,null,null,null,null,{"$f":"IF(E62=3,TRUE,FALSE)","v":false}]
[null,null,null,null,null,{"$f":"IF(E62=4,TRUE,FALSE)","v":false}]
[null,"إجراءات لتحقيق الحد الأقصى من القدرة على الصمود","الجهة المسئولة ","الجدول الزمني"]
[]
[]
[null,"P8.7 - الرعاية الصحية"]
[null,"السؤال/ مجال التقييم","تعليقات"]
[]
[null,"نطاق القياس الإرشادي","وسائل التحقق (الشرح والأدلة)"]
[null,null,null,null,null,{"$f":"IF(E73=1,TRUE,FALSE)","v":false}]
[null,null,null,null,null,{"$f":"IF(E73=2,TRUE,FALSE)","v":false}]
[null,null,null,null,null,{"$f":"IF(E73=3,TRUE,FALSE)","v":false}]
[null,null,null,null,null,{"$f":"IF(E73=4,TRUE,FALSE)","v":false}]
[null,"إجراءات لتحقيق الحد الأقصى من القدرة على الصمود","الجهة المسئولة ","الجدول الزمني"]
[]
[]
[null,"P8.8 - مرافق التعليم"]
[null,"السؤال/ مجال التقييم","تعليقات"]
[]
[null,"نطاق القياس الإرشادي","وسائل التحقق (الشرح والأدلة)"]
[null,null,null,null,null,{"$f":"IF(E84=1,TRUE,FALSE)","v":false}]
[null,null,null,null,null,{"$f":"IF(E84=2,TRUE,FALSE)","v":false}]
[null,null,null,null,null,{"$f":"IF(E84=3,TRUE,FALSE)","v":false}]
[null,null,null,null,null,{"$f":"IF(E84=4,TRUE,FALSE)","v":false}]
[null,"إجراءات لتحقيق الحد الأقصى من القدرة على الصمود","الجهة المسئولة ","الجدول الزمني"]
[]
[]
[null,"P8.9 - أصول المستجيبين الأوائل"]
[null,"السؤال/ مجال التقييم","تعليقات"]
[]
[null,"نطاق القياس الإرشادي","وسائل التحقق (الشرح والأدلة)"]
[null,null,null,null,null,{"$f":"IF(E95=1,TRUE,FALSE)","v":false}]
[null,null,null,null,null,{"$f":"IF(E95=2,TRUE,FALSE)","v":false}]
[null,null,null,null,null,{"$f":"IF(E95=3,TRUE,FALSE)","v":false}]
[null,null,null,null,null,{"$f":"IF(E95=4,TRUE,FALSE)","v":false}]
[null,"إجراءات لتحقيق الحد الأقصى من القدرة على الصمود","الجهة المسئولة ","الجدول الزمني"]

{"sheet":"E09","index":10,"n_rows":77,"n_cols":6,"rows_kept":77,"cut":false,"hidden":false,"merged":[[70,2,70,3],[71,2,71,3],[72,2,75,3],[58,2,58,3],[59,2,59,3],[60,2,60,3],[61,2,64,3],[69,2,69,3],[39,2,42,3],[47,2,47,3],[48,2,48,3],[49,2,49,3],[50,2,53,3],[27,2,27,3],[28,2,31,3],[36,2,36,3],[37,2,37,3],[38,2,38,3],[15,2,15,3],[16,2,16,3],[17,2,20,3],[25,2,25,3],[26,2,26,3],[3,2,3,3],[4,2,4,3],[5,2,5,3],[6,2,9,3],[14,2,14,3]]}
[]
[]
[null,"P9.1 - الإنذار المبكر"]
[null,"السؤال/ مجال التقييم","تعليقات"]
[]
[null,"نطاق القياس الإرشادي","وسائل التحقق (الشرح والأدلة)"]
[null,null,null,null,null,{"$f":"IF(E7=1,TRUE,FALSE)","v":false}]
[null,null,null,null,null,{"$f":"IF(E7=2,TRUE,FALSE)","v":false}]
[null,null,null,null,null,{"$f":"IF(E7=3,TRUE,FALSE)","v":false}]
[null,null,null,null,null,{"$f":"IF(E7=4,TRUE,FALSE)","v":false}]
[null,"إجراءات لتحقيق الحد الأقصى من القدرة على الصمود ","الجهة المسئولة  ","الجدول الزمني"]
[]
[]
[null,"P9.2 - خطط إدارة الأحداث"]
[null,"السؤال/ مجال التقييم","تعليقات"]
[]
[null,"نطاق القياس الإرشادي","وسائل التحقق (الشرح والأدلة)"]
[null,null,null,null,null,{"$f":"IF(E18=1,TRUE,FALSE)","v":false}]
[null,null,null,null,null,{"$f":"IF(E18=2,TRUE,FALSE)","v":false}]
[null,null,null,null,null,{"$f":"IF(E18=3,TRUE,FALSE)","v":false}]
[null,null,null,null,null,{"$f":"IF(E18=4,TRUE,FALSE)","v":false}]
[null,"إجراءات لتحقيق الحد الأقصى من القدرة على الصمود ","الجهة المسئولة  ","الجدول الزمني"]
[]
[]
[null,"P9.3 - التعيين/ احتياجات المستجيبين"]
[null,"السؤال/ مجال التقييم","تعليقات"]
[]
[null,"نطاق القياس الإرشادي","وسائل التحقق (الشرح والأدلة)"]
[null,null,null,null,null,{"$f":"IF(E29=1,TRUE,FALSE)","v":false}]
[null,null,null,null,null,{"$f":"IF(E29=2,TRUE,FALSE)","v":false}]
[null,null,null,null,null,{"$f":"IF(E29=3,TRUE,FALSE)","v":false}]
[null,null,null,null,null,{"$f":"IF(E29=4,TRUE,FALSE)","v":false}]
[null,"إجراءات لتحقيق الحد الأقصى من القدرة على الصمود ","الجهة المسئولة  ","الجدول الزمني"]
[]
[]
[null,"P9.4 - الاحتياجات من المعدات وإمدادات الإغاثة"]
[null,"السؤال/ مجال التقييم","تعليقات"]
[]
[null,"نطاق القياس الإرشادي","وسائل التحقق (الشرح والأدلة)"]
[null,null,null,null,null,{"$f":"IF(E40=1,TRUE,FALSE)","v":false}]
[null,null,null,null,null,{"$f":"IF(E40=2,TRUE,FALSE)","v":false}]
[null,null,null,null,null,{"$f":"IF(E40=3,TRUE,FALSE)","v":false}]
[null,null,null,null,null,{"$f":"IF(E40=4,TRUE,FALSE)","v":false}]
[null,"إجراءات لتحقيق الحد الأقصى من القدرة على الصمود ","الجهة المسئولة  ","الجدول الزمني"]
[]
[]
[null,"P9.5 - الغذاء والملاجئ والسلع الأساسية وإمدادات الوقود"]
[null,"السؤال/ مجال التقييم","تعليقات"]
[]
[null,"نطاق القياس الإرشادي","وسائل التحقق (الشرح والأدلة)"]
[null,null,null,null,null,{"$f":"IF(E51=1,TRUE,FALSE)","v":false}]
[null,null,null,null,null,{"$f":"IF(E51=2,TRUE,FALSE)","v":false}]
[null,null,null,null,null,{"$f":"IF(E51=3,TRUE,FALSE)","v":false}]
[null,null,null,null,null,{"$f":"IF(E51=4,TRUE,FALSE)","v":false}]
[null,"إجراءات لتحقيق الحد الأقصى من القدرة على الصمود ","الجهة المسئولة  ","الجدول الزمني"]
[]
[]
[null,"P9.6 - التشغيل البيني والعمل بين الجهات"]
[null,"السؤال/ مجال التقييم","تعليقات"]
[]
[null,"نطاق القياس الإرشادي","وسائل التحقق (الشرح والأدلة)"]
[null,null,null,null,null,{"$f":"IF(E62=1,TRUE,FALSE)","v":false}]
[null,null,null,null,null,{"$f":"IF(E62=2,TRUE,FALSE)","v":false}]
[null,null,null,null,null,{"$f":"IF(E62=3,TRUE,FALSE)","v":false}]
[null,null,null,null,null,{"$f":"IF(E62=4,TRUE,FALSE)","v":false}]
[null,"إجراءات لتحقيق الحد الأقصى من القدرة على الصمود ","الجهة المسئولة  ","الجدول الزمني"]
[]
[]
[null,"P9.7 - التدريبات"]
[null,"السؤال/ مجال التقييم","تعليقات"]
[]
[null,"نطاق القياس الإرشادي","وسائل التحقق (الشرح والأدلة)"]
[null,null,null,null,null,{"$f":"IF(E73=1,TRUE,FALSE)","v":false}]
[null,null,null,null,null,{"$f":"IF(E73=2,TRUE,FALSE)","v":false}]
[null,null,null,null,null,{"$f":"IF(E73=3,TRUE,FALSE)","v":false}]
[null,null,null,null,null,{"$f":"IF(E73=4,TRUE,FALSE)","v":false}]
[null,"إجراءات لتحقيق الحد الأقصى من القدرة على الصمود ","الجهة المسئولة  ","الجدول الزمني"]

{"sheet":"E10","index":11,"n_rows":22,"n_cols":6,"rows_kept":22,"cut":false,"hidden":false,"merged":[[15,2,15,3],[16,2,16,3],[17,2,20,3],[3,2,3,3],[4,2,4,3],[5,2,5,3],[6,2,9,3],[14,2,14,3]]}
[]
[]
[null,"P10.1 - التخطيط للتعافي فيما بعد الحدث- قبل الحدث"]
[null,"السؤال/ مجال التقييم","تعليقات"]
[]
[null,"نطاق القياس الإرشادي","وسائل التحقق (الشرح والأدلة)"]
[null,null,null,null,null,{"$f":"IF(E7=1,TRUE,FALSE)","v":false}]
[null,null,null,null,null,{"$f":"IF(E7=2,TRUE,FALSE)","v":false}]
[null,null,null,null,null,{"$f":"IF(E7=3,TRUE,FALSE)","v":false}]
[null,null,null,null,null,{"$f":"IF(E7=4,TRUE,FALSE)","v":false}]
[null,"إجراءات لتحقيق الحد الأقصى من القدرة على الصمود ","الجهة المسئولة  ","الجدول الزمني"]
[]
[]
[null,"P10.2 - الدروس المستفادة- حلقات التعلم"]
[null,"السؤال/ مجال التقييم","تعليقات"]
[]
[null,"نطاق القياس الإرشادي","وسائل التحقق (الشرح والأدلة)"]
[null,null,null,null,null,{"$f":"IF(E18=1,TRUE,FALSE)","v":false}]
[null,null,null,null,null,{"$f":"IF(E18=2,TRUE,FALSE)","v":false}]
[null,null,null,null,null,{"$f":"IF(E18=3,TRUE,FALSE)","v":false}]
[null,null,null,null,null,{"$f":"IF(E18=4,TRUE,FALSE)","v":false}]
[null,"إجراءات لتحقيق الحد الأقصى من القدرة على الصمود ","الجهة المسئولة  ","الجدول الزمني"]

{"sheet":"Results","index":12,"n_rows":221,"n_cols":13,"rows_kept":221,"cut":false,"hidden":false,"merged":[[73,2,73,5],[140,2,140,5],[139,2,139,5],[138,2,138,5],[137,2,137,5],[136,2,136,5],[134,1,134,6],[109,2,109,5],[110,2,110,5],[99,2,99,5],[100,2,100,5],[101,2,101,5],[84,2,84,5],[80,1,80,6],[82,2,82,5],[83,2,83,5],[72,2,72,5],[71,2,71,5],[70,2,70,5],[158,1,158,3],[141,2,141,5],[142,2,142,5],[146,1,146,6],[148,2,148,5],[149,2,149,5],[111,2,111,5],[98,2,98,5],[94,1,94,6],[96,2,96,5],[97,2,97,5],[106,1,106,6],[108,2,108,5],[51,2,51,5],[59,2,59,5],[60,2,60,5],[61,2,61,5],[58,2,58,5],[131,2,131,5],[35,2,35,5],[36,2,36,5],[37,2,37,5],[123,2,123,5],[124,2,124,5],[125,2,125,5],[47,2,47,5],[48,2,48,5],[49,2,49,5],[50,2,50,5],[126,2,126,5],[127,2,127,5],[128,2,128,5],[129,2,129,5],[130,2,130,5]]}
[]
[]
[]
[]
[]
[]
[]
[]
[]
[]
[]
[]
[]
[]
[]
[]
[]
[]
[]
[]
[]
[]
[]
[]
[]
[]
[]
[]
[]
[]
[]
[]
[]
[null,"الأساسية 1: الإعداد من أجل القدرة على الصمود."]
[]
[null,{"$f":"C175","v":"P1.1"},{"$f":"E175","v":"هل تتضمن خطة المدينة الرئيسة منهجيات للحد من مخاطر الكوارث وتنفذها بما يتماشى مع إطار سنداي؟\n"},null,null,null,{"$f":"F175","v":0}]
[null,{"$f":"C176","v":"P1.2"},{"$f":"E176","v":"هل توجد جهة أو آلية متعددة القطاعات ذات سلطة وموارد مناسبة للتعامل مع الحد من مخاطر الكوارث؟\n\n"},null,null,null,{"$f":"F176","v":0}]
[null,{"$f":"C177","v":"P1.3"},{"$f":"E177","v":"هل القدرة على الصمود مدمجة بشكل صحيح مع وظائف المدينة الرئيسة الأخرى؟ \n"},null,null,null,{"$f":"F177","v":0}]
[]
[]
[]
[]
[]
[]
[]
[null,"الأساسية 2 : تحديد و فهم واستخدام سيناريوهات المخاطر الحالية والمستقبلية."]
[]
[null,{"$f":"C178","v":"P2.1"},{"$f":"E178","v":"هل تمتلك المدينة المعرفة بالأخطار الرئيسة التي تواجهها ومدى احتمال حدوثها؟\n"},null,null,null,{"$f":"F178","v":0}]
[null,{"$f":"C179","v":"P2.2"},{"$f":"E179","v":"هل هناك فهم مشترك للمخاطر بين المدينة ومقدمي الخدمات المتعددين والجهات الوطنية الأخرى التي لها دور في إدارة البنية التحتية مثل الكهرباء والمياه والطرق والقطارات، ولنقاط الضغط على المنظومة والمخاطر على مستوى المدينة؟\n"},null,null,null,{"$f":"F179","v":0}]
[null,{"$f":"C180","v":"P2.3"},{"$f":"E180","v":"هل هناك سيناريوهات متفق عليها تحدد تعرض كامل المدينة وقابلية التضرر من كل خطر أو مجموعة أخطار (انظر أعلاه)؟"},null,null,null,{"$f":"F180","v":0}]
[null,{"$f":"C181","v":"P2.4"},{"$f":"E181","v":"هل هناك فهم جماعي للفشل المتعاقب المحتمل بين المدينة ومنظومات البنية التحتية المتعددة تحت السيناريوهات المختلفة؟"},null,null,null,{"$f":"F181","v":0}]
[null,{"$f":"C182","v":"P2.5"},{"$f":"E182","v":"هل تتوافر خرائط للأخطار والبيانات حول المخاطر؟ هل يتم تحديثها بانتظام؟"},null,null,null,{"$f":"F182","v":0}]
[]
[]
[]
[]
[null,"الأساسية 3 : تعزيز القدرة المالية من أجل القدرة على الصمود."]
[]
[null,{"$f":"C183","v":"P3.1"},{"$f":"E183","v":"جهات المدينة الرئيسة تتفهم أن جميع مصادر التمويل، و\"مكاسب القدرة على الصمود\"، مرتبطيين ببعضهما البعض، وتتفهم جميع الطرق المتوافرة لاجتذاب التمويل الخارجي، وتسعى بفاعلية لتأمين التمويل للاستثمارات الكبرى في مجال القدرة على الصمود."},null,null,null,{"$f":"F183","v":0}]
[null,{"$f":"C184","v":"P3.2"},{"$f":"E184","v":"هل جهزت المدينة ميزانية محمية، والموارد اللازمة وترتيبات التمويل الاحترازي للحد من مخاطر الكوارث المحلي (التخفيف، الوقاية، الاستجابة، التعافي)؟"},null,null,null,{"$f":"F184","v":0}]
[null,{"$f":"C185","v":"P3.3"},{"$f":"E185","v":"ما هو مستوى التغطية التأمينية المتوافرة في المدينة، وعبر جميع القطاعات والشركات والمجموعات؟"},null,null,null,{"$f":"F185","v":0}]
[null,{"$f":"C186","v":"P3.4"},{"$f":"E186","v":"ما هي الحوافز المتوافرة للقطاعات والشرائح المختلفة بالنسبة للشركات والمجتمع لدعم بناء القدرة على الصمود؟"},null,null,null,{"$f":"F186","v":0}]
[]
[]
[]
[]
[]
[null,"الأساسية 4 : تطبيق تصاميم وتنمية حضرية قادرة على الصمود."]
[]
[]
[null,{"$f":"C187","v":"P4.1"},{"$f":"E187","v":"هل المدينة مقسمة بشكل ملائم بحيث تأخذ بالاعتبار على سبيل المثال تأثير سيناريوهات المخاطر الرئيسة على النشاط الاقتصادي والزراعي والإنتاج والمراكز السكانية؟"},null,null,null,{"$f":"F187","v":0}]
[null,{"$f":"C188","v":"P4.2"},{"$f":"E188","v":"هل يتم الترويج للمنهجيات عبر تصميم وتطوير التنمية الحضرية الجديدة لتعزيز القدرة على الصمود؟"},null,null,null,{"$f":"F188","v":0}]
[null,{"$f":"C189","v":"P4.3"},{"$f":"E189","v":"هل تتوافر كودات أو معايير للبناء، وهل تتعامل مع أخطار ومخاطر محددة معروفة بالنسبة للمدينة؟ هل يتم تحديث هذه المعايير بانتظام؟\n"},null,null,null,{"$f":"F189","v":0}]
[null,{"$f":"C190","v":"P4.4"},{"$f":"E190","v":"هل يتم تطبيق قواعد تقسيم المناطق وكودات ومعايير البناء بشكل واسع، ويتم إنفاذها بشكل ملائم والتحقق منها؟"},null,null,null,{"$f":"F190","v":0}]
[]
[]
[]
[]
[]
[]
[null,"الأساسية 5 : حماية الحواجز الطبيعية لتعزيز المهام الوقائية للنظم البيئية الطبيعية."]
[]
[null,{"$f":"C191","v":"P5.1"},{"$f":"E191","v":"فيما عدا الوعي بالأصول الطبيعية، هل تفهم المدينة الوظائف (أو الخدمات) التي يوفرها هذا الرأسمال الطبيعي للمدينة؟"},null,null,null,{"$f":"F191","v":0}]
[null,{"$f":"C192","v":"P5.2"},{"$f":"E192","v":"هل تم تعميم البنية التحتية الخضراء والزرقاء على مشروعات التنمية الحضرية والبنية التحتية الكبرى عبر السياسة؟\n"},null,null,null,{"$f":"F202","v":0}]
[null,{"$f":"C193","v":"P5.3"},{"$f":"E193","v":"هل المدينة على علم  بخدمات المنظومات البيئية التي يوفرها الرأسمال الطبيعي خارج حدودها الإدارية؟ هل توجد اتفاقات مع الإدارات المجاورة لدعم حماية وإدارة هذه الأصول؟"},null,null,null,{"$f":"F203","v":0}]
[]
[]
[]
[]
[]
[]
[]
[]
[]
[null,"الأساسية 6: تعزيز القدرات المؤسسية من أجل القدرة على الصمود."]
[]
[null,{"$f":"C194","v":"P6.1"},{"$f":"E194","v":"هل تمتلك المدينة القدرة على اتاحة كل المهارات والخبرة التي تعتقد أنها ستحتاجها للاستجابة للحد من المخاطر والاستجابة لسيناريوهات الكوارث المعرفة؟"},null,null,null,{"$f":"F194","v":0}]
[null,"P6.2","هل توجد حملة منسقة للعلاقات العامة والتعليم، تتضمن رسائل وقنوات منظمة لضمان نشر المعلومات المتعلقة بالأخطار والمخاطر والكوارث (التي يمكن فهمها واستخدامها) بشكل صحيح للجمهور؟",null,null,null,0]
[null,"P6.3","إلى أي مدى يتم فيه مشاركة إطار قدرة المدينة على الصمود مع المنظمات الأخرى المنخرطة في القدرة على الصمود؟",null,null,null,0]
[null,"P6.4","هل توجد دورات تدريبية تغطي قضايا المخاطر والقدرة على الصمود يتم تقديمها إلى كل قطاعات المدينة بما فيها الحكومة والشركات والمنظمات غير الحكومية والمجتمع؟",null,null,null,0]
[null,"P6.5","هل مطبوعات التدريب متوافرة بأغلب اللغات المستخدمة في المدينة؟\n",null,null,null,0]
[null,"P6.6","هل تسعى المدينة لتبادل المعرفة والتعلم من المدن الأخرى التي تواجه تحديات مشابهة بشكل استباقي؟",null,null,null,0]
[]
[]
[]
[]
[null,"الأساسية 7: فهم وتعزيز القدرات المجتمعية على الصمود."]
[]
[null,{"$f":"C200","v":"P7.1"},{"$f":"E200","v":"هل تشارك المنظمات الشعبية أو منظمات المجتمع في التخطيط ما قبل الحدث والاستجابة ما بعد الحدث لكل أحياء المدينة؟"},null,null,null,{"$f":"F200","v":0}]
[null,{"$f":"C201","v":"P7.2"},{"$f":"E201","v":"هل توجد برامج تدريب منتظمة تقدم إلى سكان المدينة الأكثر قابلية للتضرر والأكثر حاجة؟"},null,null,null,{"$f":"F201","v":0}]
[null,{"$f":"C202","v":"P7.3"},{"$f":"E202","v":"ما هي نسبة الشركات التي لديها خطة موثقة لاستمرارية الأعمال تمت مراجعتها خلال ال 18 شهراً الماضية؟"},null,null,null,{"$f":"F202","v":0}]
[null,{"$f":"C203","v":"P7.4"},{"$f":"E203","v":"ما مدى فاعلية مشاركة مواطني المدينة ومجموعاتها فيما يخص الحد من مخاطر الكوارث؟"},null,null,null,{"$f":"F203","v":0}]
[]
[]
[]
[]
[]
[]
[]
[]
[]
[]
[null,"الأساسية 8: زيادة قدرة البنية التحتية على الصمود."]
[null,{"$f":"C204","v":"P8.1"},{"$f":"E204","v":"هل قدرة البنية التحتية على الصمود أولوية للمدينة، وهل تمتلك المدينة خطة أو استراتيجية للبنية التحتية وتنفذها؟ "},null,null,null,{"$f":"F204","v":0}]
[null,"P8.2","هل البنية التحتية الوقائية مصممة ومبنية بشكل جيد استناداً إلى معلومات المخاطر؟",null,null,null,0]
[null,"P8.3","هل من المتوقع حدوث خسارة كبيرة في عمل هاتين الخدمتين الأساسيتين بالنسبة لجزء كبير من المدينة في سيناريوهات الكوارث المتفق عليها؟",null,null,null,0]
[null,"P8.4","هل من المتوقع حدوث خسارة كبيرة في الخدمة بالنسبة لجزء كبير من المدينة في سيناريو الحدث \"الأسوأ\"؟ في حالة الفشل، هل ستظل ممرات البنية التحتية للطاقة آمنة (أي خالية من مخاطر التسرب، وأخطار الصعق بالكهرباء ... إلخ)؟",null,null,null,0]
[null,"P8.5","هل من المتوقع حدوث خسارة كبيرة في الخدمة بالنسبة لجزء كبير من المدينة في سيناريو الحدث \"الأسوأ\"؟ في حالة الفشل، هل ستظل ممرات البنية التحتية للنقل آمنة (أي خالية من مخاطر الفيضانات، والصدمات ... إلخ) قابلة للمرور عبرها؟",null,null,null,0]
[null,"P8.6",{"$f":"E209","v":"(الإتصال) هل من المتوقع حدوث خسارة كبيرة في الخدمة بالنسبة لجزء كبير من المدينة في سيناريو الحدث الأسوأ؟"},null,null,null,0]
[null,"P8.7","هل ستكون هناك مؤهلات صحية عالية كافية للتعامل مع الإصابات الرئيسة المتوقعة في سيناريو الحدث \"الأسوأ\"؟\n",null,null,null,0]
[null,"P8.8","ما هي نسبة المرافق التعليمية التي تقع تحت مخاطرة الضرر من السيناريوهات «الأكثر احتمالاً في الحدوث » و «الأكثر حدة »؟\n",null,null,null,0]
[null,"P8.9","هل ستكون هناك معدات كافية للمستجيبين الأوائل مع دعم عسكري أو مدني حسب المقتضى؟",null,null,null,0]
[]
[]
[null,"الأساسية 9 : ضمان الاستجابة الفعالة للكوارث."]
[]
[null,{"$f":"C213","v":"P9.1"},{"$f":"E213","v":"هل تمتلك المدينة خطة أو إجراءات تشغيل قياسية للتصرف في حالة الإنذار المبكر والتوقعات؟ ما هي قطاعات السكان التي تصل إليها منظومة الإنذار المبكر؟\n"},null,null,null,{"$f":"F213","v":0}]
[null,{"$f":"C214","v":"P9.2"},"هل هناك خطة لإدارة الكوارث أو الاستعداد لها أو الاستجابة لحالات الطوارئ تحدد قدرة المدينة على التخفیف والاستعداد والاستجابة لحالات الطوارئ المحلیة؟\n",null,null,null,0]
[null,"P9.3","هل تمتلك سلطة إدارة الكوارث المسئولة طاقما كافياً لدعم واجبات المستجيبين الأوائل في حالة سيناريو الأحداث الفجائية؟",null,null,null,0]
[null,"P9.4","هل تم تحديد الاحتياجات من المعدات والإمدادات، وتوافر المعدات بوضوح؟",null,null,null,0]
[null,"P9.5","هل ستكون المدينة قادرة على الاستمرار في إطعام وإيواء سكانها بعد الحدث؟",null,null,null,0]
[null,"P9.6","هل يوجد مركز لعمليات الطوارئ، مع مشاركة من جميع الجهات، وأتمتة إجراءات التشغيل القياسية المصممة خصيصاً للتعامل مع السيناريوهات \"الأكثر احتمالاً في الحدوث\" و \"الأكثر حدة\"؟\n",null,null,null,0]
[null,"P9.7","هل تتضمن الممارسات والتدريبات كلاً من الجمهور والمهنيين؟",null,null,null,0]
[]
[]
[]
[null,"الأساسية 10 : الإسراع في عملية التعافي وإعادة البناء بشكل أفضل."]
[]
[null,{"$f":"C220","v":"P10.1"},{"$f":"E220","v":"هل هناك استراتيجية أو عملية موجودة للتعافي وإعادة البناء بعد الحدث، بما في ذلك إعادة التشغيل الاقتصادي والجوانب المجتمعية, إلخ؟\n"},null,null,null,{"$f":"F220","v":0}]
[null,{"$f":"C221","v":"P10.2"},{"$f":"E221","v":"هل تتضمن عمليات التقييم ما بعد الحدث تحليل الفشل والقدرة على استخلاص الدروس المستفادة التي تغذي بعد ذلك تصميم وتنفيذ مشروعات إعادة البناء؟"},null,null,null,{"$f":"F221","v":0}]
[]
[]
[]
[]
[]
[]
[]
[]
[null,{"$f":"TODAY()","v":"2017-09-06"}]
[]
[]
[null,null,"Label","Name",null,"Essential","TotalScore","MaxScore","Label"]
[null,null,"S1","1.   Organise for Disaster Resilience",null,"E1",{"$f":"SUMIFS($F$175:$F$1154,$B$175:$B$1154,F163)","v":0},{"$f":"COUNTIFS($B$175:$B$221,F163)*3","v":9},"01",null,{"$f":"SUM(G163:G172)","v":0},{"$f":"K163/K164","v":0},{"$f":"CONCATENATE(\"النتيجة الإجمالية لهذا التقييم هو \",SUM(G163:G172),\" / \",SUM(H163:H172))","v":"النتيجة الإجمالية لهذا التقييم هو 0 / 141"}]
[null,null,"S2","2.   Identify, Understand and Use Current and Future Risk Scenarios",null,"E2",0,15,"02",null,{"$f":"SUM(H163:H172)","v":141},{"$f":"1-L163","v":1}]
[null,null,"S3","3.   Strengthen Financial Capacity for Resilience",null,"E3",0,12,"03"]
[null,null,"S4","4.   Pursue Resilient Urban Development and Design",null,"E4",0,12,"04"]
[null,null,"S5","5.   Safeguard Natural Buffers to Enhance Ecosystems’ Protective Functions",null,"E5",0,9,"05"]
[null,null,"S6","6.   Strengthen Institutional Capacity for Resilience",null,"E6",0,18,"06"]
[null,null,"S7","7.   Understand and Strengthen Societal Capacity for Resilience",null,"E7",0,12,"07"]
[null,null,"S8","8.   Increase Infrastructure Resilience",null,"E8",0,27,"08"]
[null,null,"S9","9.   Ensure Effective Disaster Response",null,"E9",0,21,"09"]
[null,null,"S10","10. Expedite Recovery and Build Back Better",null,"E10",0,6,"10"]
[]
[null,"Section","Ref",null,"السؤال ","SelectedScore","ThisScore"]
[null,"E1","P1.1",null,"هل تتضمن خطة المدينة الرئيسة منهجيات للحد من مخاطر الكوارث وتنفذها بما يتماشى مع إطار سنداي؟\n",{"$f":"IF(G175=\"\",0,IF(G175=0,0,4-G175))","v":0},{"$f":"'E01'!$E$7","v":0}]
[null,"E1","P1.2",null,"هل توجد جهة أو آلية متعددة القطاعات ذات سلطة وموارد مناسبة للتعامل مع الحد من مخاطر الكوارث؟\n\n",{"$f":"IF(G176=\"\",0,IF(G176=0,0,4-G176))","v":0},{"$f":"'E01'!$E$18","v":0}]
[null,"E1","P1.3",null,"هل القدرة على الصمود مدمجة بشكل صحيح مع وظائف المدينة الرئيسة الأخرى؟ \n",0,{"$f":"'E01'!$E$29","v":0}]
[null,"E2","P2.1",null,"هل تمتلك المدينة المعرفة بالأخطار الرئيسة التي تواجهها ومدى احتمال حدوثها؟\n",0,{"$f":"'E02'!$E$7","v":0}]
[null,"E2","P2.2",null,"هل هناك فهم مشترك للمخاطر بين المدينة ومقدمي الخدمات المتعددين والجهات الوطنية الأخرى التي لها دور في إدارة البنية التحتية مثل الكهرباء والمياه والطرق والقطارات، ولنقاط الضغط على المنظومة والمخاطر على مستوى المدينة؟\n",0,{"$f":"'E02'!$E$18","v":0}]
[null,"E2","P2.3",null,"هل هناك سيناريوهات متفق عليها تحدد تعرض كامل المدينة وقابلية التضرر من كل خطر أو مجموعة أخطار (انظر أعلاه)؟",0,{"$f":"'E02'!$E$29","v":0}]
[null,"E2","P2.4",null,"هل هناك فهم جماعي للفشل المتعاقب المحتمل بين المدينة ومنظومات البنية التحتية المتعددة تحت السيناريوهات المختلفة؟",0,{"$f":"'E02'!$E$40","v":0}]
[null,"E2","P2.5",null,"هل تتوافر خرائط للأخطار والبيانات حول المخاطر؟ هل يتم تحديثها بانتظام؟",0,{"$f":"'E02'!$E$51","v":0}]
[null,"E3","P3.1",null,"جهات المدينة الرئيسة تتفهم أن جميع مصادر التمويل، و\"مكاسب القدرة على الصمود\"، مرتبطيين ببعضهما البعض، وتتفهم جميع الطرق المتوافرة لاجتذاب التمويل الخارجي، وتسعى بفاعلية لتأمين التمويل للاستثمارات الكبرى في مجال القدرة على الصمود.",0,{"$f":"'E03'!$E$7","v":0}]
[null,"E3","P3.2",null,"هل جهزت المدينة ميزانية محمية، والموارد اللازمة وترتيبات التمويل الاحترازي للحد من مخاطر الكوارث المحلي (التخفيف، الوقاية، الاستجابة، التعافي)؟",0,{"$f":"'E03'!$E$18","v":0}]
[null,"E3","P3.3",null,"ما هو مستوى التغطية التأمينية المتوافرة في المدينة، وعبر جميع القطاعات والشركات والمجموعات؟",0,{"$f":"'E03'!$E$29","v":0}]
[null,"E3","P3.4",null,"ما هي الحوافز المتوافرة للقطاعات والشرائح المختلفة بالنسبة للشركات والمجتمع لدعم بناء القدرة على الصمود؟",0,{"$f":"'E03'!$E$40","v":0}]
[null,"E4","P4.1",null,"هل المدينة مقسمة بشكل ملائم بحيث تأخذ بالاعتبار على سبيل المثال تأثير سيناريوهات المخاطر الرئيسة على النشاط الاقتصادي والزراعي والإنتاج والمراكز السكانية؟",0,{"$f":"'E04'!$E$7","v":0}]
[null,"E4","P4.2",null,"هل يتم الترويج للمنهجيات عبر تصميم وتطوير التنمية الحضرية الجديدة لتعزيز القدرة على الصمود؟",0,{"$f":"'E04'!$E$18","v":0}]
[null,"E4","P4.3",null,"هل تتوافر كودات أو معايير للبناء، وهل تتعامل مع أخطار ومخاطر محددة معروفة بالنسبة للمدينة؟ هل يتم تحديث هذه المعايير بانتظام؟\n",0,{"$f":"'E04'!$E$18","v":0}]
[null,"E4","P4.4",null,"هل يتم تطبيق قواعد تقسيم المناطق وكودات ومعايير البناء بشكل واسع، ويتم إنفاذها بشكل ملائم والتحقق منها؟",0,{"$f":"'E04'!$E$40","v":0}]
[null,"E5","P5.1",null,"فيما عدا الوعي بالأصول الطبيعية، هل تفهم المدينة الوظائف (أو الخدمات) التي يوفرها هذا الرأسمال الطبيعي للمدينة؟",0,{"$f":"'E05'!$E$7","v":0}]
[null,"E5","P5.2",null,"هل تم تعميم البنية التحتية الخضراء والزرقاء على مشروعات التنمية الحضرية والبنية التحتية الكبرى عبر السياسة؟\n",0,{"$f":"'E05'!$E$18","v":0}]
[null,"E5","P5.3",null,"هل المدينة على علم  بخدمات المنظومات البيئية التي يوفرها الرأسمال الطبيعي خارج حدودها الإدارية؟ هل توجد اتفاقات مع الإدارات المجاورة لدعم حماية وإدارة هذه الأصول؟",0,{"$f":"'E05'!$E$29","v":0}]
[null,"E6","P6.1",null,"هل تمتلك المدينة القدرة على اتاحة كل المهارات والخبرة التي تعتقد أنها ستحتاجها للاستجابة للحد من المخاطر والاستجابة لسيناريوهات الكوارث المعرفة؟",0,{"$f":"'E06'!$E$7","v":0}]
[null,"E6","P6.2",null,"هل توجد حملة منسقة للعلاقات العامة والتعليم، تتضمن رسائل وقنوات منظمة لضمان نشر المعلومات المتعلقة بالأخطار والمخاطر والكوارث (التي يمكن فهمها واستخدامها) بشكل صحيح للجمهور؟",0,{"$f":"'E06'!$E$18","v":0}]
[null,"E6","P6.3",null,"إلى أي مدى يتم فيه مشاركة إطار قدرة المدينة على الصمود مع المنظمات الأخرى المنخرطة في القدرة على الصمود؟",0,{"$f":"'E06'!$E$29","v":0}]
[null,"E6","P6.4",null,"هل توجد دورات تدريبية تغطي قضايا المخاطر والقدرة على الصمود يتم تقديمها إلى كل قطاعات المدينة بما فيها الحكومة والشركات والمنظمات غير الحكومية والمجتمع؟",0,{"$f":"'E06'!$E$40","v":0}]
[null,"E6","P6.5",null,"هل مطبوعات التدريب متوافرة بأغلب اللغات المستخدمة في المدينة؟\n",0,{"$f":"'E06'!$E$51","v":0}]
[null,"E6","P6.6",null,"هل تسعى المدينة لتبادل المعرفة والتعلم من المدن الأخرى التي تواجه تحديات مشابهة بشكل استباقي؟",0,{"$f":"'E06'!$E$62","v":0}]
[null,"E7","P7.1",null,"هل تشارك المنظمات الشعبية أو منظمات المجتمع في التخطيط ما قبل الحدث والاستجابة ما بعد الحدث لكل أحياء المدينة؟",0,{"$f":"'E07'!$E$7","v":0}]
[null,"E7","P7.2",null,"هل توجد برامج تدريب منتظمة تقدم إلى سكان المدينة الأكثر قابلية للتضرر والأكثر حاجة؟",0,{"$f":"'E07'!$E$18","v":0}]
[null,"E7","P7.3",null,"ما هي نسبة الشركات التي لديها خطة موثقة لاستمرارية الأعمال تمت مراجعتها خلال ال 18 شهراً الماضية؟",0,{"$f":"'E07'!$E$29","v":0}]
[null,"E7","P7.4",null,"ما مدى فاعلية مشاركة مواطني المدينة ومجموعاتها فيما يخص الحد من مخاطر الكوارث؟",0,{"$f":"'E07'!$E$40","v":0}]
[null,"E8","P8.1",null,"هل قدرة البنية التحتية على الصمود أولوية للمدينة، وهل تمتلك المدينة خطة أو استراتيجية للبنية التحتية وتنفذها؟ ",0,{"$f":"'E08'!E7","v":0}]
[null,"E8","P8.2",null,"هل البنية التحتية الوقائية مصممة ومبنية بشكل جيد استناداً إلى معلومات المخاطر؟",0,{"$f":"'E08'!E18","v":0}]
[null,"E8","P8.3",null,"هل من المتوقع حدوث خسارة كبيرة في عمل هاتين الخدمتين الأساسيتين بالنسبة لجزء كبير من المدينة في سيناريوهات الكوارث المتفق عليها؟",0,{"$f":"'E08'!E29","v":0}]
[null,"E8","P8.4",null,"هل من المتوقع حدوث خسارة كبيرة في الخدمة بالنسبة لجزء كبير من المدينة في سيناريو الحدث \"الأسوأ\"؟ في حالة الفشل، هل ستظل ممرات البنية التحتية للطاقة آمنة (أي خالية من مخاطر التسرب، وأخطار الصعق بالكهرباء ... إلخ)؟",0,{"$f":"'E08'!E40","v":0}]
[null,"E8","P8.5",null,"هل من المتوقع حدوث خسارة كبيرة في الخدمة بالنسبة لجزء كبير من المدينة في سيناريو الحدث \"الأسوأ\"؟ في حالة الفشل، هل ستظل ممرات البنية التحتية للنقل آمنة (أي خالية من مخاطر الفيضانات، والصدمات ... إلخ) قابلة للمرور عبرها؟",0,{"$f":"'E08'!E51","v":0}]
[null,"E8","P8.6",null,"(الإتصال) هل من المتوقع حدوث خسارة كبيرة في الخدمة بالنسبة لجزء كبير من المدينة في سيناريو الحدث الأسوأ؟",0,{"$f":"'E08'!E62","v":0}]
[null,"E8","P8.7",null,"هل ستكون هناك مؤهلات صحية عالية كافية للتعامل مع الإصابات الرئيسة المتوقعة في سيناريو الحدث \"الأسوأ\"؟\n",0,{"$f":"'E08'!E73","v":0}]
[null,"E8","P8.8",null,"ما هي نسبة المرافق التعليمية التي تقع تحت مخاطرة الضرر من السيناريوهات «الأكثر احتمالاً في الحدوث » و «الأكثر حدة »؟\n",0,{"$f":"'E08'!E84","v":0}]
[null,"E8","P8.9",null,"هل ستكون هناك معدات كافية للمستجيبين الأوائل مع دعم عسكري أو مدني حسب المقتضى؟",0,{"$f":"'E08'!E95","v":0}]
[null,"E9","P9.1",null,"هل تمتلك المدينة خطة أو إجراءات تشغيل قياسية للتصرف في حالة الإنذار المبكر والتوقعات؟ ما هي قطاعات السكان التي تصل إليها منظومة الإنذار المبكر؟\n",0,{"$f":"'E09'!$E$7","v":0}]
[null,"E9","P9.2",null,"هل هناك خطة لإدارة الكوارث أو الاستعداد لها أو الاستجابة لحالات الطوارئ تحدد قدرة المدينة على التخفیف والاستعداد والاستجابة لحالات الطوارئ المحلیة؟\n",0,{"$f":"'E09'!$E$18","v":0}]
[null,"E9","P9.3",null,"هل تمتلك سلطة إدارة الكوارث المسئولة طاقما كافياً لدعم واجبات المستجيبين الأوائل في حالة سيناريو الأحداث الفجائية؟",0,{"$f":"'E09'!$E$29","v":0}]
[null,"E9","P9.4",null,"هل تم تحديد الاحتياجات من المعدات والإمدادات، وتوافر المعدات بوضوح؟",0,{"$f":"'E09'!$E$40","v":0}]
[null,"E9","P9.5",null,"هل ستكون المدينة قادرة على الاستمرار في إطعام وإيواء سكانها بعد الحدث؟",0,{"$f":"'E09'!$E$51","v":0}]
[null,"E9","P9.6",null,"هل يوجد مركز لعمليات الطوارئ، مع مشاركة من جميع الجهات، وأتمتة إجراءات التشغيل القياسية المصممة خصيصاً للتعامل مع السيناريوهات \"الأكثر احتمالاً في الحدوث\" و \"الأكثر حدة\"؟\n",0,{"$f":"'E09'!$E$62","v":0}]
[null,"E9","P9.7",null,"هل تتضمن الممارسات والتدريبات كلاً من الجمهور والمهنيين؟",0,{"$f":"'E09'!$E$73","v":0}]
[null,"E10","P10.1",null,"هل هناك استراتيجية أو عملية موجودة للتعافي وإعادة البناء بعد الحدث، بما في ذلك إعادة التشغيل الاقتصادي والجوانب المجتمعية, إلخ؟\n",0,{"$f":"'E10'!$E$7","v":0}]
[null,"E10","P10.2",null,"هل تتضمن عمليات التقييم ما بعد الحدث تحليل الفشل والقدرة على استخلاص الدروس المستفادة التي تغذي بعد ذلك تصميم وتنفيذ مشروعات إعادة البناء؟",0,{"$f":"'E10'!$E$18","v":0}]

{"sheet":"About","index":13,"n_rows":0,"n_cols":0,"rows_kept":0,"cut":false,"hidden":false,"merged":[]}